[Event "55th Rubinstein Memorial-C 2019"]
[Site "Polanica-Zdroj"]
[Date "2019.08.20"]
[Round "4.15"]
[White "Rakita, Efim"]
[Black "Knap, Narcyz"]
[Result "1-0"]
[ECO "C44"]
[WhiteElo "1960"]
[BlackElo "1584"]
[Annotator "NA"]
[PlyCount "95"]
[EventDate "2019.08.17"]
[EventType "swiss"]
[EventCountry "POL"]
[SourceTitle "playchess.com"]
[Source "ChessBase"]
[SourceQuality "1"]
[TimeControl "40/5400+30:1800+30"]

1. e4 {[%emt 0:00:00]} e5 {[%emt 0:00:00]} 2. Nf3 {[%emt 0:00:00]} Nc6 {[%emt 0:00:07]} 3. d4 {[%emt 0:00:00]} exd4 {[%emt 0:00:15]} 4. Nxd4 {[%emt 0:00:00]} Be7 {[%emt 0:03:13]} 5. Nc3 {[%emt 0:00:53]} Nf6 {[%emt 0:00:09]} 6. Be3 {[%emt 0:07:22]} O-O {[%emt 0:01:58]} 7. Be2 {[%emt 0:04:19]} d6 {[%emt 0:10:50]} 8. O-O {[%emt 0:00:30]} Bd7 {[%emt 0:01:43]} 9. f4 {[%emt 0:03:04]} a6 {[%emt 0:05:25]} 10. a4 {[%emt 0:00:29]} Nxd4 {[%emt 0:09:11]} 11. Bxd4 {[%emt 0:00:51]} c6 {[%emt 0:01:23]} 12. a5 {[%emt 0:00:44]} Qb8 {[%emt 0:00:45]} 13. e5 {[%emt 0:02:12]} dxe5 {[%emt 0:01:09]} 14. Bxe5 {[%emt 0:04:22]} Qc8 {[%emt 0:00:13]} 15. Na4 {[%emt 0:02:55]} Bg4 {[%emt 0:15:29]} 16. h3 {[%emt 0:03:44]} Bxe2 {[%emt 0:01:38]} 17. Qxe2 {[%emt 0:00:01]} Qd8 {[%emt 0:06:07]} 18. Nc3 {[%emt 0:08:03]} Bc5+ {[%emt 0:06:32]} 19. Kh2 {[%emt 0:00:41]} Qe7 {[%emt 0:00:37]} 20. Qf3 {[%emt 0:02:42]} Rad8 {[%emt 0:01:12]} 21. Rfe1 {[%emt 0:03:22]} Rd2 {[%emt 0:03:54]} 22. Bxf6 {[%emt 0:00:45]} Qxf6 {[%emt 0:00:15]} 23. Ne4 {[%emt 0:00:38]} Qd4 {[%emt 0:05:02]} 24. c3 {[%emt 0:04:04]} Qd5 {[%emt 0:02:23]} 25. Nxd2 {[%emt 0:00:27]} Qxd2 {[%emt 0:00:09]} 26. Re2 {[%emt 0:01:35]} Qd8 {[%emt 0:00:44]} 27. b4 {[%emt 0:01:29]} Bd6 {[%emt 0:00:23]} 28. g3 {[%emt 0:02:03]} Qc7 {[%emt 0:01:20]} 29. Rd1 {[%emt 0:00:50]} Be7 {[%emt 0:00:43]} 30. Red2 {[%emt 0:01:44]} Bf6 {[%emt 0:02:17]} 31. Rd7 {[%emt 0:00:22]} Qb8 {[%emt 0:00:43]} 32. Qd3 {[%emt 0:02:48]} b6 {[%emt 0:00:35]} 33. Qxa6 {[%emt 0:00:59]} bxa5 {[%emt 0:00:30]} 34. Qxa5 {[%emt 0:00:18]} Bxc3 {[%emt 0:00:46]} 35. Rd8 {[%emt 0:02:38]} Bxb4 {[%emt 0:00:11]} 36. Rxb8 {[%emt 0:00:17]} Bxa5 {[%emt 0:00:10]} 37. Rxf8+ {[%emt 0:00:13]} Kxf8 {[%emt 0:00:10]} 38. Rc1 {[%emt 0:00:11]} h6 {[%emt 0:00:51]} 39. Rxc6 {[%emt 0:00:09]} Ke7 {[%emt 0:00:36]} 40. Kg2 {[%emt 0:00:30]} Kd7 {[%emt 0:00:21]} 41. Ra6 {[%emt 0:30:04]} Bc3 {[%emt 0:30:31]} 42. Kf3 {[%emt 0:00:29]} g6 {[%emt 0:01:00]} 43. f5 {[%emt 0:00:38]} g5 {[%emt 0:02:00]} 44. Rxh6 {[%emt 0:00:25]} f6 {[%emt 0:00:25]} 45. h4 {[%emt 0:00:33]} gxh4 {[%emt 0:01:56]} 46. gxh4 {[%emt 0:01:09]} Kd6 {[%emt 0:00:33]} 47. Kg4 {[%emt 0:00:25]} Ke7 {[%emt 0:03:32]} 48. Rg6 {[%emt 0:00:24]} 1-0

[Event "55th Rubinstein Memorial-C 2019"]
[Site "Polanica-Zdroj"]
[Date "2019.08.20"]
[Round "4.16"]
[White "Bartoszewicz, Marcin"]
[Black "Trusz, Julia"]
[Result "1-0"]
[ECO "B44"]
[WhiteElo "1950"]
[BlackElo "1583"]
[Annotator "NA"]
[PlyCount "77"]
[EventDate "2019.08.17"]
[EventType "swiss"]
[EventCountry "POL"]
[SourceTitle "playchess.com"]
[Source "ChessBase"]
[SourceQuality "1"]
[TimeControl "40/5400+30:1800+30"]

1. e4 {[%emt 0:00:00]} c5 2. Nf3 {[%emt 0:00:27]} e6 3. d4 {[%emt 0:02:00]} cxd4 {[%emt 0:01:09]} 4. Nxd4 {[%emt 0:00:18]} Nc6 {[%emt 0:00:47]} 5. Nb5 {[%emt 0:02:58]} d6 {[%emt 0:02:37]} 6. Bf4 {[%emt 0:00:42]} e5 {[%emt 0:01:44]} 7. Be3 {[%emt 0:00:09]} a6 {[%emt 0:01:25]} 8. N5c3 {[%emt 0:01:52]} Nf6 {[%emt 0:01:47]} 9. Bg5 {[%emt 0:03:18]} Be7 {[%emt 0:01:13]} 10. Bxf6 {[%emt 0:00:34]} Bxf6 {[%emt 0:00:29]} 11. Nd5 {[%emt 0:01:37]} O-O {[%emt 0:04:01]} 12. Nbc3 {[%emt 0:01:04]} Be7 {[%emt 0:06:50]} 13. Nxe7+ {[%emt 0:02:42]} Nxe7 {[%emt 0:01:47]} 14. Qd2 {[%emt 0:00:28]} Qc7 {[%emt 0:01:33]} 15. g3 {[%emt 0:12:10]} Be6 {[%emt 0:04:44]} 16. Bg2 {[%emt 0:08:15]} Rad8 {[%emt 0:02:25]} 17. O-O {[%emt 0:01:15]} f5 {[%emt 0:12:35]} 18. exf5 {[%emt 0:01:29]} Bxf5 {[%emt 0:01:12]} 19. Nd5 {[%emt 0:04:10]} Nxd5 {[%emt 0:09:08]} 20. Qxd5+ {[%emt 0:00:47]} Rf7 {[%emt 0:01:13]} 21. Rac1 {[%emt 0:02:45]} Kh8 {[%emt 0:01:38]} 22. c4 {[%emt 0:01:54]} Qe7 {[%emt 0:06:02]} 23. Rfd1 {[%emt 0:05:05]} Be6 {[%emt 0:04:01]} 24. Qd2 {[%emt 0:01:42]} Bg4 {[%emt 0:06:50]} 25. Re1 {[%emt 0:02:16]} Bf3 {[%emt 0:01:24]} 26. Rc3 {[%emt 0:03:41]} Bxg2 {[%emt 0:01:48]} 27. Kxg2 {[%emt 0:00:02]} Qf6 {[%emt 0:02:59]} 28. Rd3 {[%emt 0:01:41]} Rdf8 {[%emt 0:07:24]} 29. Re2 {[%emt 0:00:45]} Rd8 {[%emt 0:02:33]} 30. Qe3 {[%emt 0:02:18]} h6 {[%emt 0:02:59]} 31. Red2 {[%emt 0:01:32]} Rc7 {[%emt 0:03:48]} 32. b3 {[%emt 0:02:04]} Kg8 {[%emt 0:01:24]} 33. Qb6 {[%emt 0:02:45]} Rcd7 {[%emt 0:01:09]} 34. Rd5 {[%emt 0:01:03]} Qf5 {[%emt 0:03:23]} 35. Qe3 {[%emt 0:02:30]} g5 {[%emt 0:02:01]} 36. c5 {[%emt 0:02:16]} dxc5 {[%emt 0:00:51]} 37. Rxe5 {[%emt 0:02:30]} Qf8 {[%emt 0:00:57]} 38. Rxd7 {[%emt 0:00:29]} Rxd7 {[%emt 0:00:10]} 39. Re8 {[%emt 0:00:20]} 1-0

[Event "55th Rubinstein Memorial-C 2019"]
[Site "Polanica-Zdroj"]
[Date "2019.08.20"]
[Round "4.17"]
[White "Tokmantsev, Ivan"]
[Black "Wilgosz, Jan"]
[Result "1-0"]
[ECO "C68"]
[WhiteElo "1918"]
[BlackElo "1569"]
[Annotator "NA"]
[PlyCount "57"]
[EventDate "2019.08.17"]
[EventType "swiss"]
[EventCountry "POL"]
[SourceTitle "playchess.com"]
[Source "ChessBase"]
[SourceQuality "1"]
[TimeControl "40/5400+30:1800+30"]

1. e4 e5 {[%emt 0:00:00]} 2. Nf3 {[%emt 0:00:00]} Nc6 {[%emt 0:00:01]} 3. Bb5 {[%emt 0:00:00]} a6 4. Bxc6 {[%emt 0:00:24]} dxc6 5. h3 Bc5 {[%emt 0:04:24]} 6. d3 {[%emt 0:00:24]} Qe7 {[%emt 0:04:42]} 7. Qe2 {[%emt 0:00:21]} Nf6 {[%emt 0:07:06]} 8. O-O {[%emt 0:00:47]} Bd7 {[%emt 0:04:18]} 9. Be3 {[%emt 0:00:24]} Nh5 {[%emt 0:08:07]} 10. Nbd2 {[%emt 0:05:25]} O-O-O {[%emt 0:07:46]} 11. Nc4 {[%emt 0:01:20]} f6 {[%emt 0:05:49]} 12. a3 {[%emt 0:02:13]} Be8 {[%emt 0:04:45]} 13. b4 {[%emt 0:00:17]} Bxe3 {[%emt 0:02:11]} 14. Qxe3 {[%emt 0:01:30]} Kb8 {[%emt 0:01:15]} 15. Rfb1 {[%emt 0:02:06]} Nf4 {[%emt 0:03:28]} 16. a4 {[%emt 0:01:30]} g5 {[%emt 0:09:06]} 17. b5 {[%emt 0:09:15]} cxb5 {[%emt 0:06:13]} 18. axb5 {[%emt 0:00:45]} Bxb5 {[%emt 0:01:08]} 19. Na5 {[%emt 0:00:20]} h5 {[%emt 0:06:56]} 20. Ne1 {[%emt 0:01:03]} Qd7 {[%emt 0:06:12]} 21. c4 {[%emt 0:02:42]} Bc6 {[%emt 0:00:37]} 22. Qc5 {[%emt 0:01:08]} Kc8 {[%emt 0:02:38]} 23. Qa7 {[%emt 0:03:36]} Qg7 {[%emt 0:07:03]} 24. Nxb7 {[%emt 0:00:28]} Bxb7 {[%emt 0:01:56]} 25. Rxb7 {[%emt 0:00:06]} g4 {[%emt 0:02:50]} 26. Qb8+ {[%emt 0:00:04]} Kd7 {[%emt 0:00:23]} 27. Qxc7+ {[%emt 0:00:06]} Ke6 {[%emt 0:00:15]} 28. Rb6+ {[%emt 0:00:11]} Rd6 {[%emt 0:00:16]} 29. Rxd6# 1-0

[Event "55th Rubinstein Memorial-C 2019"]
[Site "Polanica-Zdroj"]
[Date "2019.08.20"]
[Round "4.18"]
[White "Mulawa, Cyprian"]
[Black "Binkowska, Agata"]
[Result "1/2-1/2"]
[ECO "B28"]
[WhiteElo "1578"]
[BlackElo "1896"]
[Annotator "NA"]
[PlyCount "61"]
[EventDate "2019.08.17"]
[EventType "swiss"]
[EventCountry "POL"]
[SourceTitle "playchess.com"]
[Source "ChessBase"]
[SourceQuality "1"]
[TimeControl "40/5400+30:1800+30"]

1. e4 {[%emt 0:00:00]} c5 {[%emt 0:00:00]} 2. Nf3 {[%emt 0:00:00]} a6 {[%emt 0:00:00]} 3. c4 {[%emt 0:01:22]} Nc6 {[%emt 0:00:44]} 4. Nc3 e5 5. d3 g6 {[%emt 0:01:00]} 6. g3 {[%emt 0:01:30]} Bg7 {[%emt 0:00:08]} 7. Bg2 {[%emt 0:00:05]} d6 {[%emt 0:01:58]} 8. O-O {[%emt 0:00:07]} Nge7 {[%emt 0:01:01]} 9. Nh4 {[%emt 0:02:06]} h6 {[%emt 0:06:15]} 10. Be3 {[%emt 0:02:05]} g5 {[%emt 0:04:31]} 11. Nf3 {[%emt 0:01:53]} Bg4 {[%emt 0:00:35]} 12. Nd5 {[%emt 0:02:43]} Nxd5 {[%emt 0:04:34]} 13. cxd5 {[%emt 0:00:34]} Ne7 {[%emt 0:00:48]} 14. Qb3 {[%emt 0:01:48]} Rb8 {[%emt 0:10:52]} 15. Nd2 {[%emt 0:02:47]} Qd7 {[%emt 0:14:20]} 16. f3 {[%emt 0:02:09]} Bh5 {[%emt 0:08:32]} 17. a4 {[%emt 0:01:27]} f5 {[%emt 0:04:29]} 18. Bf2 {[%emt 0:03:06]} Bf7 {[%emt 0:03:43]} 19. a5 {[%emt 0:07:59]} h5 {[%emt 0:07:28]} 20. Qa4 {[%emt 0:08:03]} Qxa4 {[%emt 0:13:17]} 21. Rxa4 {[%emt 0:00:05]} O-O {[%emt 0:00:38]} 22. Nc4 {[%emt 0:00:40]} Be8 {[%emt 0:00:29]} 23. Raa1 {[%emt 0:02:12]} Rf6 {[%emt 0:00:59]} 24. Be3 {[%emt 0:00:51]} f4 {[%emt 0:00:28]} 25. Bd2 {[%emt 0:00:36]} Nc8 {[%emt 0:05:33]} 26. Bh3 {[%emt 0:00:57]} Na7 {[%emt 0:03:32]} 27. Be6+ {[%emt 0:00:41]} Bf7 {[%emt 0:00:07]} 28. Bxf7+ {[%emt 0:01:16]} Kxf7 {[%emt 0:00:09]} 29. b4 {[%emt 0:01:00]} cxb4 {[%emt 0:00:19]} 30. Bxb4 {[%emt 0:00:07]} Nb5 {[%emt 0:01:00]} 31. Rac1 {[%emt 0:05:19]} 1/2-1/2

[Event "55th Rubinstein Memorial-C 2019"]
[Site "Polanica-Zdroj"]
[Date "2019.08.20"]
[Round "4.19"]
[White "Simon, Marek"]
[Black "Jeske, Jerzy"]
[Result "1-0"]
[ECO "D06"]
[WhiteElo "1879"]
[BlackElo "1547"]
[Annotator "NA"]
[PlyCount "69"]
[EventDate "2019.08.17"]
[EventType "swiss"]
[EventCountry "POL"]
[SourceTitle "playchess.com"]
[Source "ChessBase"]
[SourceQuality "1"]
[TimeControl "40/5400+30:1800+30"]

1. d4 {[%emt 0:00:00]} d5 2. c4 Nf6 {[%emt 0:04:09]} 3. cxd5 {[%emt 0:00:00]} Nxd5 {[%emt 0:00:56]} 4. e4 {[%emt 0:00:00]} Nf6 {[%emt 0:00:55]} 5. Nc3 {[%emt 0:00:00]} g6 {[%emt 0:00:19]} 6. Be2 {[%emt 0:05:50]} Bg7 {[%emt 0:00:18]} 7. Be3 {[%emt 0:09:27]} O-O {[%emt 0:06:11]} 8. h3 {[%emt 0:00:46]} a6 {[%emt 0:03:15]} 9. a4 {[%emt 0:01:37]} Nc6 {[%emt 0:04:46]} 10. Nf3 {[%emt 0:03:35]} e6 {[%emt 0:10:38]} 11. O-O {[%emt 0:02:01]} Ne7 {[%emt 0:09:19]} 12. Qc2 {[%emt 0:08:39]} c6 {[%emt 0:04:29]} 13. Rfd1 {[%emt 0:11:56]} Bd7 {[%emt 0:09:09]} 14. a5 {[%emt 0:01:59]} Rc8 {[%emt 0:06:47]} 15. b4 {[%emt 0:01:44]} Qc7 {[%emt 0:03:50]} 16. Na4 {[%emt 0:07:32]} Rcd8 {[%emt 0:04:02]} 17. Rac1 {[%emt 0:01:55]} Bc8 {[%emt 0:01:25]} 18. Ne5 {[%emt 0:06:58]} Nd7 {[%emt 0:09:21]} 19. Nd3 {[%emt 0:09:43]} Nf6 {[%emt 0:03:45]} 20. Bf4 {[%emt 0:02:43]} Qd7 {[%emt 0:01:08]} 21. Ndc5 {[%emt 0:00:18]} Qe8 {[%emt 0:00:23]} 22. Bc7 {[%emt 0:00:29]} Kh8 {[%emt 0:04:12]} 23. Nc3 {[%emt 0:02:02]} Nfg8 {[%emt 0:00:53]} 24. Bxd8 {[%emt 0:03:05]} Qxd8 {[%emt 0:00:11]} 25. Bf3 {[%emt 0:03:01]} Nf6 {[%emt 0:03:21]} 26. g4 {[%emt 0:03:08]} Qc7 {[%emt 0:00:34]} 27. e5 {[%emt 0:00:43]} Nfd5 {[%emt 0:00:06]} 28. Nxd5 {[%emt 0:00:32]} Nxd5 {[%emt 0:00:25]} 29. Qd2 {[%emt 0:01:46]} Qe7 {[%emt 0:00:17]} 30. Bxd5 {[%emt 0:02:15]} exd5 {[%emt 0:00:08]} 31. Qe3 {[%emt 0:00:33]} Qh4 {[%emt 0:00:27]} 32. Rc3 {[%emt 0:01:40]} Bh6 {[%emt 0:02:09]} 33. Qg3 {[%emt 0:00:28]} Qe7 {[%emt 0:00:36]} 34. f4 {[%emt 0:00:45]} f6 {[%emt 0:01:27]} 35. exf6 {[%emt 0:00:25]} 1-0

[Event "55th Rubinstein Memorial-C 2019"]
[Site "Polanica-Zdroj"]
[Date "2019.08.20"]
[Round "4.20"]
[White "Kozlowski, Andrzej"]
[Black "Pyka, Roman"]
[Result "0-1"]
[ECO "A00"]
[WhiteElo "1566"]
[BlackElo "1860"]
[Annotator "NA"]
[PlyCount "72"]
[EventDate "2019.08.17"]
[EventType "swiss"]
[EventCountry "POL"]
[SourceTitle "playchess.com"]
[Source "ChessBase"]
[SourceQuality "1"]
[TimeControl "40/5400+30:1800+30"]

1. e3 c5 {[%emt 0:00:00]} 2. f4 {[%emt 0:00:00]} a6 3. b3 {[%emt 0:00:07]} g6 {[%emt 0:00:30]} 4. Bb2 {[%emt 0:00:08]} Nf6 5. g4 {[%emt 0:02:57]} Rg8 {[%emt 0:04:45]} 6. g5 {[%emt 0:01:29]} Nh5 {[%emt 0:00:50]} 7. Be2 {[%emt 0:01:04]} Ng7 {[%emt 0:00:14]} 8. Nf3 {[%emt 0:02:16]} Nc6 {[%emt 0:02:34]} 9. Nc3 {[%emt 0:02:46]} d5 {[%emt 0:00:39]} 10. d3 {[%emt 0:03:39]} Nf5 {[%emt 0:03:59]} 11. Qd2 {[%emt 0:02:51]} Bg7 {[%emt 0:04:53]} 12. e4 {[%emt 0:02:04]} dxe4 {[%emt 0:01:31]} 13. dxe4 {[%emt 0:01:27]} Qxd2+ {[%emt 0:00:14]} 14. Kxd2 {[%emt 0:01:18]} Nfd4 {[%emt 0:01:18]} 15. Nxd4 {[%emt 0:03:38]} Bxd4 {[%emt 0:01:50]} 16. Na4 {[%emt 0:03:54]} Bxb2 {[%emt 0:03:37]} 17. Nxb2 {[%emt 0:00:09]} b6 {[%emt 0:03:03]} 18. c3 {[%emt 0:02:20]} Bb7 {[%emt 0:00:47]} 19. Na4 {[%emt 0:02:07]} O-O-O+ {[%emt 0:00:10]} 20. Ke3 {[%emt 0:01:02]} Kc7 {[%emt 0:00:24]} 21. Rad1 {[%emt 0:01:14]} Rxd1 {[%emt 0:04:49]} 22. Rxd1 {[%emt 0:02:31]} e6 {[%emt 0:03:07]} 23. h4 {[%emt 0:01:30]} Re8 {[%emt 0:06:40]} 24. h5 {[%emt 0:04:08]} e5 {[%emt 0:11:03]} 25. f5 {[%emt 0:01:52]} gxf5 {[%emt 0:01:11]} 26. exf5 {[%emt 0:00:35]} Ne7 {[%emt 0:02:51]} 27. Bg4 {[%emt 0:05:08]} Rg8 {[%emt 0:08:33]} 28. g6 {[%emt 0:04:51]} hxg6 {[%emt 0:04:11]} 29. fxg6 {[%emt 0:04:05]} Nd5+ {[%emt 0:02:36]} 30. Kf2 {[%emt 0:01:33]} fxg6 {[%emt 0:00:18]} 31. c4 {[%emt 0:01:37]} Nf6 {[%emt 0:03:59]} 32. Be6 {[%emt 0:02:03]} Rg7 {[%emt 0:00:33]} 33. Rg1 {[%emt 0:01:37]} Nxh5 {[%emt 0:00:24]} 34. Nc3 {[%emt 0:01:01]} Nf4 {[%emt 0:00:29]} 35. Bf5 {[%emt 0:01:45]} Rf7 {[%emt 0:00:26]} 36. Bg4 {[%emt 0:01:37]} Nh3+ {[%emt 0:00:17]} 0-1

[Event "55th Rubinstein Memorial-C 2019"]
[Site "Polanica-Zdroj"]
[Date "2019.08.20"]
[Round "4.21"]
[White "Halhoul, Adam"]
[Black "Koscielny, Edmond"]
[Result "0-1"]
[ECO "A41"]
[WhiteElo "1563"]
[BlackElo "1841"]
[Annotator "NA"]
[PlyCount "76"]
[EventDate "2019.08.17"]
[EventType "swiss"]
[EventCountry "POL"]
[SourceTitle "playchess.com"]
[Source "ChessBase"]
[SourceQuality "1"]
[TimeControl "40/5400+30:1800+30"]

1. d4 {[%emt 0:00:00]} d6 {[%emt 0:00:00]} 2. c4 f5 3. Nc3 {[%emt 0:00:07]} Nf6 {[%emt 0:00:30]} 4. Bg5 {[%emt 0:00:07]} e6 {[%emt 0:00:29]} 5. e4 {[%emt 0:00:30]} Be7 6. e5 {[%emt 0:03:53]} dxe5 {[%emt 0:02:17]} 7. dxe5 {[%emt 0:00:13]} Qxd1+ {[%emt 0:01:07]} 8. Rxd1 {[%emt 0:00:11]} Ng4 {[%emt 0:00:18]} 9. Bxe7 {[%emt 0:03:00]} Kxe7 {[%emt 0:00:13]} 10. Nf3 {[%emt 0:01:19]} Nd7 {[%emt 0:07:51]} 11. Nb5 {[%emt 0:00:37]} c6 {[%emt 0:00:22]} 12. Nd6 {[%emt 0:04:47]} Ndxe5 {[%emt 0:02:11]} 13. Nxe5 {[%emt 0:01:58]} Nxe5 {[%emt 0:00:10]} 14. Be2 {[%emt 0:00:12]} Rd8 {[%emt 0:10:01]} 15. c5 {[%emt 0:00:38]} Nf7 {[%emt 0:00:42]} 16. Nxf7 {[%emt 0:01:17]} Rxd1+ {[%emt 0:00:14]} 17. Kxd1 {[%emt 0:00:23]} Kxf7 {[%emt 0:00:18]} 18. f4 {[%emt 0:00:26]} Bd7 {[%emt 0:01:02]} 19. Re1 {[%emt 0:00:40]} Rd8 {[%emt 0:00:37]} 20. Kc2 {[%emt 0:00:37]} Bc8 {[%emt 0:00:27]} 21. g3 {[%emt 0:00:19]} Rd5 {[%emt 0:07:21]} 22. b4 {[%emt 0:00:14]} Rd4 {[%emt 0:01:33]} 23. Kc3 {[%emt 0:00:10]} Re4 {[%emt 0:04:22]} 24. Bh5+ {[%emt 0:00:43]} Kf6 {[%emt 0:08:12]} 25. Rxe4 {[%emt 0:00:43]} fxe4 {[%emt 0:00:01]} 26. Kd4 {[%emt 0:02:47]} e3 {[%emt 0:13:27]} 27. Bg4 {[%emt 0:01:52]} g5 {[%emt 0:06:18]} 28. Kxe3 {[%emt 0:00:54]} gxf4+ {[%emt 0:00:14]} 29. Kxf4 {[%emt 0:00:48]} e5+ {[%emt 0:02:35]} 30. Kf3 {[%emt 0:00:18]} e4+ {[%emt 0:00:25]} 31. Kf4 {[%emt 0:00:09]} Bxg4 {[%emt 0:00:12]} 32. Kxg4 {[%emt 0:00:05]} Ke5 {[%emt 0:00:05]} 33. Kh3 {[%emt 0:02:29]} Kd4 {[%emt 0:00:09]} 34. a4 {[%emt 0:01:56]} e3 {[%emt 0:01:58]} 35. Kg2 {[%emt 0:00:18]} Kd3 {[%emt 0:00:14]} 36. b5 {[%emt 0:00:26]} e2 {[%emt 0:00:51]} 37. bxc6 {[%emt 0:00:07]} bxc6 {[%emt 0:00:22]} 38. Kf2 {[%emt 0:00:10]} Kd2 {[%emt 0:00:08]} 0-1

[Event "55th Rubinstein Memorial-C 2019"]
[Site "Polanica-Zdroj"]
[Date "2019.08.20"]
[Round "4.22"]
[White "Mike, Patryk"]
[Black "Lewandowski, Witold"]
[Result "1-0"]
[ECO "B31"]
[WhiteElo "1840"]
[BlackElo "1542"]
[Annotator "NA"]
[PlyCount "45"]
[EventDate "2019.08.17"]
[EventType "swiss"]
[EventCountry "POL"]
[SourceTitle "playchess.com"]
[Source "ChessBase"]
[SourceQuality "1"]
[TimeControl "40/5400+30:1800+30"]

1. e4 {[%emt 0:00:00]} c5 {[%emt 0:00:00]} 2. Nf3 {[%emt 0:00:00]} Nc6 3. Bb5 {[%emt 0:00:29]} g6 {[%emt 0:00:04]} 4. Bxc6 bxc6 5. O-O {[%emt 0:05:39]} Bg7 {[%emt 0:00:42]} 6. e5 {[%emt 0:13:02]} Nh6 {[%emt 0:05:26]} 7. d3 {[%emt 0:05:38]} O-O {[%emt 0:02:33]} 8. Nc3 {[%emt 0:07:48]} d6 {[%emt 0:05:01]} 9. Bf4 {[%emt 0:05:37]} f6 {[%emt 0:06:14]} 10. exd6 {[%emt 0:05:20]} exd6 {[%emt 0:00:11]} 11. d4 {[%emt 0:02:53]} cxd4 {[%emt 0:10:38]} 12. Nxd4 {[%emt 0:05:04]} Nf5 {[%emt 0:10:58]} 13. Nxf5 {[%emt 0:10:36]} Bxf5 {[%emt 0:00:09]} 14. Bxd6 {[%emt 0:02:35]} Bxc2 {[%emt 0:01:51]} 15. Qxc2 {[%emt 0:00:51]} Qxd6 {[%emt 0:00:09]} 16. Rac1 {[%emt 0:09:02]} f5 {[%emt 0:02:41]} 17. Na4 {[%emt 0:01:33]} Rfd8 {[%emt 0:09:45]} 18. Rfd1 {[%emt 0:08:28]} Qe6 {[%emt 0:04:34]} 19. Re1 {[%emt 0:09:31]} Qxa2 {[%emt 0:04:52]} 20. Qxc6 {[%emt 0:01:15]} Qd5 {[%emt 0:12:04]} 21. Re8+ {[%emt 0:00:21]} Kf7 {[%emt 0:03:01]} 22. Qxd5+ {[%emt 0:00:19]} Rxd5 {[%emt 0:00:08]} 23. Rxa8 1-0

[Event "55th Rubinstein Memorial-C 2019"]
[Site "Polanica-Zdroj"]
[Date "2019.08.20"]
[Round "4.23"]
[White "Sypien, Natan"]
[Black "Kazmierowski, Tymon"]
[Result "1-0"]
[ECO "A45"]
[WhiteElo "1819"]
[BlackElo "1532"]
[Annotator "NA"]
[PlyCount "87"]
[EventDate "2019.08.17"]
[EventType "swiss"]
[EventCountry "POL"]
[SourceTitle "playchess.com"]
[Source "ChessBase"]
[SourceQuality "1"]
[TimeControl "40/5400+30:1800+30"]

1. d4 Nf6 2. Bg5 e6 3. e4 h6 4. Bxf6 Qxf6 5. Nc3 Bb4 6. Qd2 d5 7. a3 Bxc3 8. Qxc3 O-O 9. e5 Qe7 10. f4 b6 11. Nf3 c5 12. Qd2 Nd7 13. c3 Bb7 14. Bd3 Rac8 15. O-O f5 16. exf6 Qxf6 17. Ne5 Nxe5 18. fxe5 Qh4 19. Qe3 Qe7 20. Rf3 Rxf3 21. Qxf3 Rf8 22. Qg4 c4 23. Bg6 Bc6 24. Rf1 Be8 25. Rxf8+ Kxf8 26. Bc2 Qf7 27. Qf3 Qxf3 28. gxf3 g5 29. Kf2 Kg7 30. Kg3 Bg6 31. Ba4 Bf5 32. f4 Kf7 33. Bb5 Kg7 34. Ba4 Kf7 35. h4 gxf4+ 36. Kxf4 Kg7 37. Be8 Kf8 38. Bc6 Kg7 39. Bxd5 b5 40. Bc6 a6 41. d5 Kf7 42. d6 Bc2 43. Ke3 Bd1 44. Kd4 1-0

[Event "55th Rubinstein Memorial-C 2019"]
[Site "Polanica-Zdroj"]
[Date "2019.08.20"]
[Round "4.24"]
[White "Borowski, Przemyslaw"]
[Black "Rosa, Antoni"]
[Result "1-0"]
[ECO "D31"]
[WhiteElo "1805"]
[BlackElo "1528"]
[Annotator "NA"]
[PlyCount "77"]
[EventDate "2019.08.17"]
[EventType "swiss"]
[EventCountry "POL"]
[SourceTitle "playchess.com"]
[Source "ChessBase"]
[SourceQuality "1"]
[TimeControl "40/5400+30:1800+30"]

1. d4 d5 2. c4 e6 3. Nc3 Bb4 4. Bf4 Nf6 {[%emt 0:01:52]} 5. e3 {[%emt 0:03:32]} O-O {[%emt 0:01:38]} 6. Nf3 {[%emt 0:01:15]} Nbd7 {[%emt 0:02:04]} 7. a3 {[%emt 0:01:57]} Bxc3+ {[%emt 0:00:42]} 8. bxc3 {[%emt 0:00:04]} c5 {[%emt 0:02:20]} 9. Qc2 {[%emt 0:05:08]} cxd4 {[%emt 0:01:26]} 10. exd4 {[%emt 0:02:30]} dxc4 {[%emt 0:02:59]} 11. Bxc4 {[%emt 0:03:22]} Nb6 {[%emt 0:01:16]} 12. Bd3 {[%emt 0:03:59]} Nbd5 {[%emt 0:01:23]} 13. Bd2 {[%emt 0:01:29]} Nf4 {[%emt 0:01:16]} 14. Bxf4 {[%emt 0:01:14]} Bd7 {[%emt 0:00:22]} 15. Ne5 {[%emt 0:01:04]} Rc8 {[%emt 0:00:34]} 16. O-O {[%emt 0:01:30]} Bc6 {[%emt 0:00:44]} 17. Nxc6 {[%emt 0:04:53]} Rxc6 {[%emt 0:00:44]} 18. Rfc1 {[%emt 0:03:52]} h6 {[%emt 0:06:35]} 19. Rab1 {[%emt 0:02:37]} Nd5 {[%emt 0:04:09]} 20. Bd2 {[%emt 0:00:18]} b6 {[%emt 0:02:44]} 21. Bb5 {[%emt 0:00:38]} Rc7 {[%emt 0:01:42]} 22. c4 {[%emt 0:01:14]} Ne7 {[%emt 0:00:32]} 23. Bf4 {[%emt 0:00:54]} Rb7 {[%emt 0:01:05]} 24. Qe4 {[%emt 0:00:21]} Qa8 {[%emt 0:01:48]} 25. Bd6 {[%emt 0:03:56]} Rd8 {[%emt 0:02:28]} 26. Bxe7 {[%emt 0:01:36]} Rxe7 {[%emt 0:00:42]} 27. Qxa8 {[%emt 0:00:03]} Rxa8 {[%emt 0:00:44]} 28. c5 {[%emt 0:00:48]} bxc5 {[%emt 0:00:49]} 29. dxc5 {[%emt 0:00:19]} Rc7 {[%emt 0:00:23]} 30. c6 {[%emt 0:00:23]} Rb8 {[%emt 0:01:25]} 31. Ba4 {[%emt 0:00:27]} Rbc8 {[%emt 0:01:12]} 32. g3 {[%emt 0:00:22]} Kf8 {[%emt 0:00:33]} 33. Kg2 {[%emt 0:00:22]} Ke7 {[%emt 0:01:10]} 34. Rd1 {[%emt 0:01:00]} a5 {[%emt 0:02:07]} 35. Rd7+ {[%emt 0:00:42]} Rxd7 {[%emt 0:00:29]} 36. cxd7 {[%emt 0:00:05]} Ra8 {[%emt 0:02:36]} 37. Rc1 {[%emt 0:01:19]} Kd8 {[%emt 0:00:18]} 38. Kf3 {[%emt 0:00:13]} f6 {[%emt 0:01:17]} 39. Rc6 {[%emt 0:00:38]} 1-0